bitfinex-derivatives/quotes_BTCF0:USTF0_20250506
["timestamp","ask_amount","ask_price","bid_price","bid_amount"]
[1746548162939,0.2819134,94750.0,94749.0,0.55866011]
[1746548163550,0.3608,94755.0,94754.0,0.2111045]
[1746548163846,0.6427423,94755.0,94754.0,0.36857218]
[1746548164740,0.6427423,94755.0,94754.0,0.40057218]
[1746548168856,0.6427423,94755.0,94754.0,0.18946768]
[1746548169249,0.6427423,94755.0,94754.0,0.032]
[1746548169554,0.6427423,94755.0,94748.0,0.2753179]
[1746548169555,0.2111156,94749.0,94748.0,0.2753179]
[1746548169742,0.2111156,94749.0,94748.0,0.0952]
[1746548170054,0.3166596,94749.0,94748.0,0.0311]
[1746548170269,0.2111179,94748.0,94747.0,0.00158316]
[1746548170446,0.3800619,94748.0,94747.0,0.00158316]
[1746548171153,0.529744,94748.0,94732.0,0.0331]
[1746548171450,0.2111491,94734.0,94733.0,0.0307]
[1746548171656,0.2820291,94734.0,94733.0,0.0307]
[1746548172049,0.2111513,94733.0,94732.0,0.0331]
[1746548172249,0.2111513,94733.0,94721.0,0.0331]
[1746548172250,0.2111758,94722.0,94721.0,0.2749764]
[1746548172647,0.2111758,94722.0,94721.0,0.4334712]
[1746548172853,0.2111758,94722.0,94721.0,0.2222948]
[1746548173360,0.2111758,94722.0,94721.0,0.274978]
[1746548173547,0.2444758,94722.0,94721.0,0.274978]
[1746548173746,0.2444758,94722.0,94721.0,0.0638]
[1746548173948,0.2444758,94722.0,94716.0,0.0327]
[1746548173949,0.211187,94717.0,94716.0,0.0327]
[1746548174150,0.282147,94717.0,94716.0,0.2438892]
[1746548174352,0.282147,94717.0,94716.0,0.4018611]
[1746548174652,0.282147,94717.0,94716.0,0.2228719]
[1746548174856,0.282147,94717.0,94716.0,0.0649]
[1746548175358,0.282147,94717.0,94716.0,0.0636]
[1746548175762,0.313447,94717.0,94716.0,0.0636]
[1746548177060,0.2111892,94716.0,94715.0,0.00105579]
[1746548177353,0.2740892,94716.0,94715.0,0.00105579]
[1746548177654,0.37966921,94716.0,94715.0,0.00105579]
[1746548178648,0.3450092,94716.0,94715.0,0.00105579]
[1746548179352,0.2740892,94716.0,94715.0,0.00105579]
[1746548179654,0.3450892,94716.0,94715.0,0.00105579]
[1746548179849,0.3450892,94716.0,94715.0,0.03165579]
[1746548180549,0.3137892,94716.0,94715.0,0.24284719]
[1746548181050,0.3137892,94716.0,94715.0,0.03165579]
[1746548181454,0.3137892,94716.0,94715.0,0.00105579]
[1746548181660,0.3137892,94716.0,94715.0,9e-08]
[1746548181961,0.3848692,94716.0,94715.0,9e-08]
[1746548182549,0.49044921,94716.0,94715.0,9e-08]
[1746548185655,0.2112226,94701.0,94695.0,0.00158385]
[1746548185960,0.2112338,94696.0,94695.0,0.00158385]
[1746548186156,0.211245,94691.0,94690.0,0.0322]
[1746548186363,0.2112539,94687.0,94686.0,0.0622]
[1746548186562,0.2112539,94687.0,94686.0,0.0944]
[1746548187955,0.2112539,94687.0,94685.0,0.00105613]
[1746548187956,0.2112561,94686.0,94685.0,0.00105613]
[1746548188158,0.2112628,94683.0,94682.0,0.4173]
[1746548188565,0.3168788,94683.0,94682.0,0.4173]
[1746548189662,0.2112628,94683.0,94682.0,0.4173]
[1746548190055,0.2112717,94679.0,94678.0,0.0951]
[1746548190265,0.5720717,94679.0,94678.0,0.0951]
[1746548192060,0.7146317,94679.0,94678.0,0.0951]
[1746548192664,0.0712,94679.0,94678.0,0.306374]
[1746548192866,0.14256,94679.0,94678.0,0.306374]
[1746548193064,0.3538317,94679.0,94678.0,0.306374]
[1746548194968,0.3538317,94679.0,94678.0,0.0951]
[1746548196067,0.3538317,94679.0,94678.0,0.5124]
[1746548196767,0.3538317,94679.0,94678.0,0.723674]
[1746548199276,0.2824717,94679.0,94678.0,0.723674]
[1746548199458,0.572068,94682.0,94681.0,0.2112673]
[1746548199775,0.643308,94682.0,94681.0,0.2112673]
[1746548200067,0.282508,94682.0,94681.0,0.2112673]
[1746548200280,0.2112717,94679.0,94678.0,0.7236687]
[1746548200461,0.2112717,94679.0,94678.0,0.690974]
[1746548201564,0.2112717,94679.0,94678.0,0.743792]
[1746548201760,0.2825117,94679.0,94678.0,0.743792]
[1746548202171,0.07124,94679.0,94678.0,0.743792]
[1746548202372,0.2825117,94679.0,94678.0,0.743792]
[1746548202779,0.2825117,94679.0,94678.0,0.690974]
[1746548202970,0.2826717,94679.0,94678.0,0.690974]
[1746548203477,0.2826717,94679.0,94678.0,1.051774]
[1746548204378,0.2826717,94679.0,94678.0,0.690974]
[1746548206167,0.2826717,94679.0,94678.0,0.4797]
[1746548206668,0.2826717,94679.0,94678.0,0.690974]
[1746548207173,0.2826717,94679.0,94678.0,0.4797]
[1746548209168,0.2826717,94679.0,94678.0,0.690974]
[1746548210076,0.2826717,94679.0,94678.0,0.4797]
[1746548210477,0.2826717,94679.0,94678.0,0.690974]
[1746548211478,0.2112717,94679.0,94678.0,0.690974]
[1746548211678,0.2823917,94679.0,94678.0,0.690974]
[1746548215078,0.2823917,94679.0,94678.0,0.4797]
[1746548215773,0.2823917,94679.0,94678.0,0.722274]
[1746548215977,0.2823917,94679.0,94678.0,0.511]
[1746548216782,0.2823917,94679.0,94678.0,0.722274]
[1746548217084,0.2823917,94679.0,94678.0,0.511]
[1746548217280,0.6431917,94679.0,94678.0,0.4793]
[1746548217578,0.6743917,94679.0,94678.0,0.062]
[1746548217970,0.3135917,94679.0,94678.0,0.062]
[1746548218177,0.3135917,94679.0,94678.0,0.092]
[1746548218380,0.6743917,94679.0,94678.0,0.092]
[1746548218778,0.6743917,94679.0,94678.0,0.062]
[1746548219385,0.3135917,94679.0,94678.0,0.062]
[1746548219585,0.6743917,94679.0,94678.0,0.062]
[1746548219780,0.6743917,94679.0,94678.0,0.0307]
[1746548220376,0.31333421,94679.0,94678.0,0.0307]
[1746548220585,0.31333421,94679.0,94678.0,0.093]
[1746548221080,0.21101421,94679.0,94678.0,0.304274]
[1746548221275,0.28193421,94679.0,94678.0,0.304274]
[1746548222182,0.16108927,94684.0,94683.0,0.2112628]
[1746548222386,0.44322987,94684.0,94683.0,0.2112628]
[1746548222580,0.44322987,94684.0,94683.0,0.36887296]
[1746548222771,0.44322987,94684.0,94683.0,0.15761016]
[1746548223178,0.44322987,94684.0,94683.0,0.0651]
[1746548223489,0.44330987,94684.0,94683.0,0.2763628]
[1746548223786,0.37234987,94684.0,94683.0,0.4354422]
[1746548223988,0.44326987,94684.0,94683.0,0.4354422]
[1746548224189,0.44326987,94684.0,94683.0,1.9354422]
[1746548224988,0.2821806,94684.0,94683.0,1.9354422]
[1746548225499,0.2821806,94684.0,94683.0,1.94580476]
[1746548225989,0.2821806,94684.0,94683.0,0.44580476]
[1746548226575,0.2821806,94684.0,94683.0,1.94580476]
[1746548226782,0.2821806,94684.0,94683.0,0.2241794]
[1746548226983,0.2821806,94684.0,94683.0,0.4354422]
[1746548227175,0.2821806,94684.0,94683.0,1.9354422]
[1746548227381,0.3439806,94684.0,94683.0,1.9354422]
[1746548228692,0.3439806,94684.0,94683.0,1.7241794]
[1746548228984,0.3439806,94684.0,94683.0,0.1590794]
[1746548229387,0.264089,94681.0,94680.0,0.2112677]
[1746548229590,0.2112695,94680.0,94679.0,0.1585815]
[1746548229790,0.2724695,94680.0,94679.0,0.2112717]
[1746548230086,0.2724695,94680.0,94679.0,0.2433717]
[1746548230299,0.2112634,94683.0,94682.0,0.2112628]
[1746548230679,0.2417634,94683.0,94682.0,0.37011951]
[1746548230876,0.00388069,95599.0,94682.0,0.37011951]
[1746548230877,0.0528102,94693.0,94685.0,0.052814]
[1746548231081,0.2818125,94688.0,94687.0,0.2112516]
[1746548231279,0.3346256,94688.0,94687.0,0.2112516]
[1746548231483,0.3668256,94688.0,94687.0,0.2112516]
[1746548233085,0.0322,94688.0,94687.0,0.2112516]
[1746548233289,0.2962584,94691.0,94690.0,0.2112472]
[1746548233493,0.3667784,94691.0,94690.0,0.2112472]
[1746548233791,0.264089,94681.0,94680.0,0.0528173]
[1746548234286,0.264089,94681.0,94680.0,0.15816797]
[1746548234787,0.2112717,94679.0,94677.0,0.00158433]
[1746548235382,0.2747717,94679.0,94677.0,0.00158433]
[1746548235888,0.2424717,94679.0,94678.0,0.241974]
[1746548236088,0.2112628,94684.0,94682.0,0.0528144]
[1746548236390,0.2112717,94679.0,94678.0,0.2419725]
[1746548238504,0.2427717,94679.0,94678.0,0.2419725]
[1746548239491,0.0312,94680.0,94679.0,0.2112717]
[1746548239794,0.16146547,94685.0,94684.0,0.2112606]
[1746548239795,0.37273047,94685.0,94684.0,0.2112606]
[1746548239985,0.44325047,94685.0,94684.0,0.2112606]
[1746548240496,0.23198547,94685.0,94684.0,0.2112606]
[1746548240680,0.44324377,94685.0,94684.0,0.2112606]
[1746548241384,0.16146547,94685.0,94684.0,0.72983262]
[1746548241588,0.0305,94700.0,94684.0,0.62418402]
[1746548241791,0.264039,94702.0,94701.0,0.2112182]
[1746548241985,0.335919,94702.0,94701.0,0.2112182]
[1746548242185,0.2112249,94700.0,94699.0,0.033]
[1746548242391,0.2112089,94711.0,94710.0,0.2111959]
[1746548242592,0.2830889,94711.0,94710.0,0.2111959]
[1746548242985,0.2112089,94711.0,94710.0,0.2111959]
[1746548243179,0.2830489,94711.0,94710.0,0.2111959]
[1746548243392,0.07184,94711.0,94710.0,0.2111959]
[1746548243692,0.001,94716.0,94715.0,0.2111914]
[1746548243887,0.07284,94716.0,94715.0,0.2511914]
[1746548244087,0.001,94716.0,94715.0,1.91037281]
[1746548244288,0.02294,94716.0,94715.0,2.19395281]
[1746548244989,0.0015,94730.0,94715.0,2.19395281]
[1746548244990,0.0015,94730.0,94717.0,0.211187]
[1746548245194,0.07176,94726.0,94717.0,0.381187]
[1746548245395,0.07176,94726.0,94717.0,0.64596247]
[1746548245595,0.07176,94726.0,94717.0,0.50596247]
[1746548246086,0.07176,94726.0,94717.0,0.68396247]
[1746548246282,0.07176,94726.0,94722.0,0.0527939]
[1746548246487,0.0015,94730.0,94729.0,0.2111602]
[1746548246797,0.07318,94730.0,94729.0,0.36885966]
[1746548247094,0.07318,94730.0,94729.0,0.54685966]
[1746548247591,0.001,94746.0,94745.0,0.2111246]
[1746548247796,0.2838823,94746.0,94745.0,0.2111246]
[1746548248183,0.07276,94746.0,94745.0,0.2111246]
[1746548248389,0.001,94746.0,94745.0,0.2743246]
[1746548248586,0.001,94746.0,94745.0,0.4326952]
[1746548248998,0.001,94746.0,94745.0,0.4434139]
[1746548249198,0.001,94746.0,94745.0,1.9434139]
[1746548249401,0.14166627,94749.0,94748.0,0.2111179]
[1746548249584,0.21280875,94756.0,94755.0,0.2111023]
[1746548249784,0.21280875,94756.0,94755.0,0.5719023]
[1746548249991,0.21280875,94756.0,94755.0,0.72974259]
[1746548250192,0.10472,94763.0,94759.0,0.0527729]
[1746548250397,0.2110889,94761.0,94760.0,0.0623]
[1746548250599,0.2110889,94761.0,94760.0,0.43235257]
[1746548250792,0.07172,94763.0,94762.0,0.2110867]
[1746548251191,0.07172,94763.0,94762.0,0.37004947]
[1746548251385,0.07172,94763.0,94762.0,1.87004947]
[1746548252997,0.2828045,94763.0,94762.0,1.87004947]
[1746548253697,0.2828045,94763.0,94762.0,0.15896277]
[1746548253909,0.2111,94756.0,94755.0,0.5719023]
[1746548254290,0.07164,94756.0,94755.0,0.5719023]
[1746548254694,0.07164,94756.0,94755.0,0.6348023]
[1746548254896,0.31384,94756.0,94755.0,0.6348023]
[1746548255185,0.34674,94756.0,94755.0,0.6348023]
[1746548255691,0.34674,94756.0,94755.0,0.6037023]
[1746548258401,0.10274,94756.0,94755.0,0.6037023]
[1746548258598,0.0527683,94768.0,94764.0,0.2110822]
[1746548258803,0.07286,94765.0,94764.0,0.2110822]
[1746548259001,0.28394,94765.0,94764.0,0.43256506]
[1746548260103,0.31424,94765.0,94764.0,0.43256506]
[1746548261005,0.10316,94765.0,94764.0,0.43256506]
[1746548261197,0.07286,94765.0,94764.0,0.43256506]
[1746548261396,0.07286,94765.0,94764.0,0.46286506]
[1746548262194,0.07282,94765.0,94764.0,0.46286506]
[1746548262395,0.0015,94765.0,94764.0,0.46286506]
[1746548262595,0.07282,94765.0,94764.0,0.56838905]
[1746548262903,0.07282,94765.0,94764.0,0.57838905]
[1746548263100,0.0015,94765.0,94764.0,0.57838905]
[1746548263605,0.2110631,94773.0,94772.0,0.2110644]
[1746548263796,0.2823431,94773.0,94772.0,0.5718644]
[1746548263994,0.2823431,94773.0,94772.0,0.72946196]
[1746548264191,0.0527583,94786.0,94779.0,0.0527621]
[1746548264505,0.2441384,94788.0,94787.0,0.2110288]
[1746548264700,0.3154184,94788.0,94787.0,0.2110288]
[1746548264896,0.2110444,94781.0,94780.0,0.00211014]
[1746548265203,0.2110444,94781.0,94780.0,0.21315674]
[1746548266099,0.00102326,94781.0,94780.0,0.59261497]
[1746548266498,0.21206766,94781.0,94780.0,0.59261497]
[1746548266704,0.21206766,94781.0,94780.0,0.58204364]
[1746548267000,0.21229651,94781.0,94780.0,0.58204364]
[1746548267202,0.28369651,94781.0,94780.0,0.58204364]
[1746548267405,0.28369651,94781.0,94780.0,0.61454364]
[1746548267702,0.28392536,94781.0,94780.0,0.61454364]
[1746548267886,0.28392536,94781.0,94780.0,0.58204364]
[1746548268092,0.31432536,94781.0,94780.0,0.58204364]
[1746548269398,0.31455421,94781.0,94780.0,0.58204364]
[1746548270106,0.31431421,94781.0,94780.0,0.58204364]
[1746548270505,0.31454289,94781.0,94780.0,0.58204364]
[1746548270705,0.10349849,94781.0,94780.0,0.58204364]
[1746548271208,0.31454289,94781.0,94780.0,0.58204364]
[1746548271507,0.10349849,94781.0,94780.0,0.58204364]
[1746548271706,0.10372717,94781.0,94780.0,0.58204364]
[1746548271909,0.13702717,94781.0,94780.0,0.58204364]
[1746548272103,0.07320717,94781.0,94780.0,0.58204364]
[1746548272408,0.07316717,94781.0,94780.0,0.64524364]
[1746548272596,0.00216717,94781.0,94780.0,0.64524364]
[1746548272798,0.07312717,94781.0,94780.0,0.64524364]
[1746548273199,0.28417157,94781.0,94780.0,2.14524364]
[1746548273503,0.07320522,94781.0,94780.0,2.14524364]
[1746548273902,0.28424962,94781.0,94780.0,2.14524364]
[1746548274112,0.07312522,94781.0,94780.0,2.14524364]
[1746548274500,0.00224522,94781.0,94780.0,2.14524364]
[1746548274701,0.07308522,94781.0,94780.0,2.14524364]
[1746548275314,0.2637666,94798.0,94797.0,0.2110087]
[1746548275509,0.3124148,94798.0,94797.0,0.2110087]
[1746548275709,0.1014,94798.0,94797.0,0.2110087]
[1746548275909,0.2416065,94798.0,94797.0,0.2110087]
[1746548276105,0.3124065,94798.0,94797.0,0.2110087]
[1746548282315,0.3124065,94798.0,94797.0,0.36831947]
[1746548283317,0.1015,94800.0,94799.0,0.2110043]
[1746548283514,0.1721,94800.0,94799.0,0.2110043]
[1746548284010,0.3831021,94800.0,94799.0,0.2442043]
[1746548284209,0.1721,94800.0,94799.0,0.2442043]
[1746548285413,0.3831021,94800.0,94799.0,0.2442043]
[1746548285614,0.1721,94800.0,94799.0,0.2442043]
[1746548285911,0.3831021,94800.0,94799.0,0.2442043]
[1746548286917,0.4459021,94800.0,94799.0,0.2442043]
[1746548288814,0.4459021,94800.0,94799.0,0.0332]
[1746548289612,0.4595685,94800.0,94799.0,0.0332]
[1746548290012,0.4595685,94800.0,94799.0,0.2442043]
[1746548290911,0.4595685,94800.0,94799.0,0.0332]
[1746548291114,0.4595685,94800.0,94799.0,0.2442043]
[1746548291415,0.4595685,94800.0,94799.0,0.0332]
[1746548291619,0.4595685,94800.0,94795.0,0.3608]
[1746548291620,0.211011,94796.0,94795.0,0.3608]
[1746548291923,0.211011,94796.0,94795.0,0.46856431]
[1746548292319,0.211011,94796.0,94782.0,0.2638025]
[1746548292320,0.2638049,94783.0,94782.0,0.2638025]
[1746548292514,0.3341249,94783.0,94782.0,0.2638025]
[1746548292717,0.3341249,94783.0,94782.0,0.32481503]
[1746548293221,0.3341249,94783.0,94782.0,0.27205463]
[1746548293825,0.3341249,94783.0,94782.0,0.06101253]
[1746548294025,0.3341249,94783.0,94782.0,0.27205463]
[1746548294226,0.3341249,94783.0,94781.0,0.0308]
[1746548294227,0.2110421,94782.0,94781.0,0.15817106]
[1746548294428,0.2110444,94781.0,94780.0,0.00211014]
[1746548294722,0.2110689,94770.0,94769.0,0.16093061]
[1746548294917,0.2638466,94768.0,94767.0,0.2110754]
[1746548295120,0.2110755,94767.0,94766.0,0.0308]
[1746548295313,0.2749755,94767.0,94766.0,0.19682587]
[1746548295717,0.2749755,94767.0,94766.0,0.24964209]
[1746548296025,0.2749755,94767.0,94766.0,0.4075266]
[1746548296726,0.2749755,94767.0,94766.0,0.1964488]
[1746548296926,0.2749755,94767.0,94766.0,0.1656488]
[1746548297834,0.2749755,94767.0,94766.0,0.1156488]
[1746548299128,0.2749755,94767.0,94766.0,0.12365522]
[1746548299530,0.3804995,94767.0,94766.0,0.1156488]
[1746548299738,0.2110911,94760.0,94759.0,0.0308]
[1746548300136,0.2110911,94760.0,94759.0,0.39946142]
[1746548300537,0.2720911,94760.0,94759.0,0.39946142]
[1746548301641,0.2110867,94765.0,94764.0,0.2638482]
[1746548301943,0.3346977,94765.0,94764.0,0.2110778]
[1746548302334,0.3346977,94765.0,94764.0,0.2734778]
[1746548302534,0.3874687,94765.0,94764.0,0.2734778]
[1746548305144,0.3874687,94765.0,94764.0,0.03]
[1746548305342,0.3874687,94765.0,94764.0,0.2410822]
[1746548306639,0.2110911,94760.0,94759.0,0.00800642]
[1746548306847,0.2110911,94760.0,94759.0,0.2417934]
[1746548307032,0.2110911,94760.0,94759.0,0.40053753]
[1746548308046,0.2110911,94760.0,94759.0,0.40850231]
[1746548308435,0.2110911,94760.0,94759.0,0.19740891]
[1746548308639,0.2110911,94760.0,94759.0,0.14740891]
[1746548309040,0.2110911,94760.0,94759.0,0.35850231]
[1746548309243,0.2820111,94760.0,94759.0,0.35850231]
[1746548309641,0.07092,94760.0,94759.0,0.35850231]
[1746548309945,0.2820111,94760.0,94759.0,0.35850231]
[1746548311742,0.2820111,94760.0,94759.0,0.39070231]
[1746548325257,0.07092,94760.0,94759.0,0.39070231]
[1746548325460,0.2820111,94760.0,94759.0,0.39070231]
[1746548325753,0.16066853,94764.0,94763.0,0.2110845]
[1746548326051,0.16066853,94773.0,94772.0,0.2110644]
[1746548326253,0.16066853,94773.0,94772.0,2.0918644]
[1746548326452,0.16066853,94773.0,94772.0,2.25002394]
[1746548326654,0.16066853,94773.0,94772.0,2.31292394]
[1746548329556,0.16066853,94773.0,94772.0,2.26502394]
[1746548329759,0.2110622,94773.0,94772.0,2.24502394]
[1746548330744,0.24346,94774.0,94773.0,0.2110622]
[1746548330958,0.24346,94774.0,94773.0,0.2735622]
[1746548331156,0.2110577,94776.0,94775.0,0.2638172]
[1746548331367,0.2816577,94776.0,94775.0,0.2638172]
[1746548331661,0.2816577,94776.0,94775.0,0.4870592]
[1746548332845,0.3143577,94776.0,94775.0,0.4870592]
[1746548339459,0.2110533,94777.0,94776.0,0.2110555]
[1746548339656,0.0702,94777.0,94776.0,0.2744555]
[1746548339862,0.13417924,94781.0,94780.0,0.2110466]
[1746548340061,0.20445924,94781.0,94780.0,0.5718466]
[1746548340265,0.20445924,94781.0,94780.0,0.73031897]
[1746548342165,0.2813244,94781.0,94780.0,0.73031897]
[1746548343372,0.3453244,94781.0,94780.0,0.73031897]
[1746548344870,0.3453244,94781.0,94780.0,0.68031897]
[1746548345970,0.064,94781.0,94780.0,0.68031897]
[1746548346174,0.032,94781.0,94780.0,0.68031897]
[1746548346473,0.10216,94781.0,94780.0,0.71271897]
[1746548346668,0.3132044,94781.0,94780.0,0.71271897]
[1746548346868,0.3132044,94781.0,94780.0,0.74561897]
[1746548347278,0.10216,94781.0,94780.0,0.74561897]
[1746548347768,0.3132044,94781.0,94780.0,0.74561897]
[1746548347977,0.2110355,94785.0,94784.0,0.2110377]
[1746548348161,0.2811555,94785.0,94784.0,0.3165555]
[1746548349470,0.2811555,94785.0,94784.0,0.2637966]
[1746548351575,0.3114555,94785.0,94784.0,0.27446855]
[1746548352967,0.2413355,94785.0,94784.0,0.27446855]
[1746548353167,0.3113755,94785.0,94784.0,0.27446855]
[1746548357682,0.10034,94785.0,94784.0,0.27446855]
[1746548357871,0.3113755,94785.0,94784.0,0.27446855]
[1746548358776,0.2110444,94781.0,94780.0,0.4261]
[1746548359074,0.2110444,94781.0,94780.0,0.5718466]
[1746548359274,0.2110444,94781.0,94780.0,0.2110466]
[1746548364478,0.0317,94784.0,94783.0,0.2110399]
[1746548364677,0.2637842,94791.0,94790.0,0.2110199]
[1746548364876,0.39846452,94793.0,94792.0,0.2110199]
[1746548365076,0.46850452,94793.0,94792.0,0.2110199]
[1746548366182,0.46850452,94793.0,94792.0,0.1610199]
[1746548368288,0.2810579,94793.0,94792.0,0.1610199]
[1746548368476,0.2110288,94789.0,94788.0,0.052757]
[1746548368677,0.2110444,94781.0,94780.0,0.6246065]
[1746548369087,0.2110444,94781.0,94780.0,0.78340589]
[1746548369477,0.2439444,94781.0,94780.0,0.78340589]
[1746548369986,0.2439444,94781.0,94780.0,0.15879939]
[1746548370187,0.2439444,94781.0,94780.0,0.36984599]
[1746548370488,0.24409306,94781.0,94780.0,0.2110466]
[1746548370679,0.24409306,94781.0,94780.0,0.36938488]
[1746548374493,0.24409306,94781.0,94780.0,0.15833828]
[1746548374792,0.2638744,94758.0,94749.0,0.3608]
[1746548374987,0.3166488,94758.0,94757.0,0.2110964]
[1746548375181,0.3862488,94758.0,94757.0,0.2110964]
[1746548375381,0.3862488,94758.0,94757.0,0.36971768]
[1746548375984,0.3862488,94758.0,94757.0,0.2425964]
[1746548376291,0.3862488,94758.0,94757.0,0.40129302]
[1746548377491,0.3862488,94758.0,94739.0,0.11430831]
[1746548377492,0.2111357,94740.0,94739.0,0.11430831]
[1746548377682,0.7111757,94740.0,94739.0,0.11430831]
[1746548377878,1.0719757,94740.0,94739.0,0.11430831]
[1746548378178,1.0719757,94740.0,94739.0,0.06430831]
[1746548378387,0.2111491,94734.0,94733.0,0.04303219]
[1746548378782,0.2111714,94724.0,94720.0,0.0312]
[1746548378984,0.6415314,94724.0,94720.0,0.0312]
[1746548379583,0.7048314,94724.0,94720.0,0.0312]
[1746548380594,0.7048314,94724.0,94723.0,0.21328501]
[1746548380891,0.0326,94724.0,94723.0,0.21328501]
[1746548381092,0.06972,94749.0,94748.0,0.2111179]
[1746548381292,0.0307,94759.0,94758.0,0.2110956]
[1746548381491,0.0015,94765.0,94759.0,0.2110934]
[1746548381492,0.07,94764.0,94759.0,0.2110934]
[1746548381698,0.07,94764.0,94759.0,0.3115934]
[1746548381899,0.07,94764.0,94759.0,0.4708812]
[1746548382094,0.07,94764.0,94759.0,0.8264132]
[1746548382389,0.1227706,94764.0,94759.0,0.40299181]
[1746548382591,0.37243344,94760.0,94759.0,0.40299181]
[1746548382796,0.37243344,94760.0,94759.0,0.16139841]
[1746548382995,0.2110911,94760.0,94759.0,0.37249181]
[1746548383195,0.2110911,94760.0,94759.0,0.19139841]
[1746548383396,0.2110911,94760.0,94759.0,1.90249181]
[1746548384106,0.2110911,94760.0,94759.0,2.26329181]
[1746548384289,0.0322,94761.0,94759.0,1.66139841]
[1746548384486,0.2110911,94760.0,94759.0,0.11139841]
[1746548384685,0.2416911,94760.0,94759.0,0.00211061]
[1746548384895,0.4801831,94760.0,94759.0,0.00211061]
[1746548385296,0.2111312,94742.0,94741.0,0.03]
[1746548385497,0.0704,94742.0,94741.0,0.2411335]
[1746548385798,0.0704,94742.0,94741.0,0.398664]
[1746548388904,0.0704,94742.0,94741.0,0.40677413]
[1746548389398,0.10696319,94749.0,94748.0,0.2111179]
[1746548389599,0.38843879,94749.0,94748.0,0.2111179]
[1746548390903,0.2639133,94744.0,94743.0,0.2111278]
[1746548391295,0.3302133,94744.0,94743.0,0.2111278]
[1746548391798,0.17732319,94749.0,94742.0,0.15905573]
[1746548391799,0.17732319,94749.0,94745.0,0.052781]
[1746548392099,0.38843879,94749.0,94748.0,0.2111179]
[1746548393002,0.42053879,94749.0,94748.0,0.2111179]
[1746548393500,0.42053879,94749.0,94748.0,0.1611179]
[1746548395700,0.35017879,94749.0,94748.0,0.1611179]
[1746548395891,0.10696319,94749.0,94748.0,0.5219179]
[1746548396096,0.17736319,94749.0,94748.0,0.5219179]
[1746548396295,0.0704,94749.0,94748.0,0.5849179]
[1746548397496,0.2815156,94749.0,94748.0,0.063]
[1746548397696,0.2111179,94748.0,94747.0,0.2435201]
[1746548397902,0.2755179,94748.0,94747.0,0.2435201]
[1746548398103,0.033,94748.0,94747.0,0.40099973]
[1746548398305,0.2441179,94748.0,94747.0,0.40099973]
[1746548398901,0.2111179,94748.0,94747.0,0.40099973]
[1746548399699,0.2429179,94748.0,94747.0,0.40099973]
[1746548401405,0.2429179,94748.0,94747.0,0.18987963]
[1746548401605,0.2429179,94748.0,94743.0,0.2435268]
[1746548401606,0.2111268,94744.0,94743.0,0.2435268]
[1746548401804,0.2111268,94744.0,94743.0,0.2111268]
[1746548404808,0.2111268,94744.0,94743.0,0.2430268]
[1746548405012,0.2111232,94746.0,94745.0,0.2111201]
[1746548405198,0.0318,94748.0,94747.0,0.2111201]
[1746548405404,0.13373675,94750.0,94749.0,0.2111156]
[1746548405605,0.20401675,94750.0,94749.0,0.2111156]
[1746548406105,0.20401675,94750.0,94749.0,0.43167507]
[1746548407201,0.20401675,94750.0,94749.0,0.60967507]
[1746548407601,0.17761347,94750.0,94749.0,2.10967507]
[1746548409311,0.17761347,94750.0,94749.0,1.93167507]
[1746548411613,0.17769347,94750.0,94749.0,1.93167507]
[1746548412108,0.07593926,94750.0,94749.0,2.03721507]
[1746548412310,0.13373675,94757.0,94756.0,0.2111]
[1746548412615,0.07044,94771.0,94764.0,0.2110822]
[1746548412814,0.00014866,94781.0,94764.0,0.6318822]
[1746548413109,0.00014866,94781.0,94775.0,0.2110577]
[1746548413314,0.07148,94776.0,94775.0,0.5718577]
[1746548413515,0.07148,94776.0,94775.0,0.7298163]
[1746548414009,0.07148,94776.0,94775.0,0.7935163]
[1746548414403,0.07148,94776.0,94775.0,0.2216586]
[1746548414613,0.2110711,94770.0,94769.0,0.2638349]
[1746548414913,0.0527738,94759.0,94758.0,0.2110824]
[1746548415104,0.1234138,94759.0,94758.0,0.2110824]
[1746548415806,0.1234138,94759.0,94758.0,0.2433824]
[1746548416009,0.0302,94761.0,94760.0,0.2110911]
[1746548416310,0.2412754,94768.0,94767.0,0.2110755]
[1746548416618,0.17484367,94780.0,94775.0,0.2110577]
[1746548416619,0.0527617,94780.0,94775.0,0.2110577]
[1746548416915,0.0840617,94780.0,94775.0,0.2110577]
[1746548417214,0.07176,94776.0,94775.0,0.2110577]
[1746548417510,0.07176,94776.0,94775.0,0.41961195]
[1746548417905,0.07176,94776.0,94775.0,0.43291195]
[1746548419706,0.2828155,94776.0,94775.0,0.22185425]
[1746548419909,0.2828155,94776.0,94775.0,0.0321]
[1746548420112,0.0527682,94769.0,94765.0,0.3608]
[1746548420312,0.2110867,94762.0,94761.0,0.2110869]
[1746548420613,0.3608,94765.0,94762.0,0.15742944]
[1746548420814,0.2111179,94748.0,94741.0,0.3608]
[1746548421019,0.2111179,94748.0,94742.0,0.2111305]
[1746548421020,0.211129,94743.0,94742.0,0.2111305]
[1746548421215,0.2111312,94742.0,94741.0,0.3608]
[1746548421409,0.2111379,94739.0,94728.0,0.0322]
[1746548421605,0.2111488,94736.0,94735.0,0.0527862]
[1746548421812,0.2111374,94740.0,94739.0,0.2111357]
[1746548422012,0.0714,94740.0,94739.0,0.1055688]
[1746548422518,0.0714,94740.0,94739.0,0.3167067]
[1746548427317,0.0714,94740.0,94739.0,0.47549727]
[1746548427620,0.5719223,94746.0,94745.0,0.2111246]
[1746548427817,0.6742023,94746.0,94745.0,0.2111246]
[1746548428412,0.2111402,94738.0,94737.0,0.3608]
[1746548428719,0.2111446,94736.0,94730.0,0.0527893]
[1746548428916,0.2639468,94732.0,94729.0,0.3608]
[1746548429219,0.211158,94732.0,94731.0,0.37039095]
[1746548429421,0.2430468,94735.0,94734.0,0.2111491]
[1746548430011,0.3141668,94735.0,94734.0,0.2111491]
[1746548431506,0.3141668,94735.0,94734.0,0.21903001]
[1746548431915,0.3141668,94735.0,94734.0,0.00788091]
[1746548432219,0.2639492,94732.0,94725.0,0.0527922]
[1746548432409,0.2639492,94732.0,94731.0,0.2111491]
[1746548432605,0.2111602,94732.0,94731.0,0.2111491]
[1746548432812,0.2111602,94732.0,94731.0,0.36860409]
[1746548434518,0.2819602,94732.0,94731.0,0.36860409]
[1746548435021,0.2819602,94732.0,94731.0,0.37640024]
[1746548436115,0.2819602,94732.0,94731.0,0.16525114]
[1746548436318,0.2819602,94732.0,94731.0,0.37640694]
[1746548436516,0.2819602,94732.0,94731.0,0.16525114]
[1746548436712,0.2111714,94724.0,94723.0,0.00211141]
[1746548437019,0.2639775,94722.0,94721.0,0.2639674]
[1746548437219,0.2639775,94722.0,94721.0,0.27191009]
[1746548437722,0.2639775,94722.0,94721.0,0.21911629]
[1746548437723,0.3477725,94722.0,94721.0,0.21911629]